[Event "Titled Tuesday Blitz June 13 Early 2023"]
[White "Bacrot, Etienne"]
[Black "Sadhwani, Raunak"]
[WhiteFideId "605506"]
[BlackFideId "35093487"]
[WhiteElo "2672"]
[BlackElo "2631"]
[Result "0-1"]
[Round "9"]
[TimeControl "180+2"]
[Date "2023.06.13"]
[WhiteClock "0:00:00"]
[BlackClock "0:00:03"]
[Board "11"]

1. e4 {[%clk 0:03:00]}  g6 {[%clk 0:02:59]} 2. Nf3 {[%clk 0:03:00]}  Bg7 {[%clk 0:03:00]} 3. d4 {[%clk 0:03:01]}  d6 {[%clk 0:03:00]} 4. Bd3 {[%clk 0:03:02]}  Nf6 {[%clk 0:02:58]} 5. c3 {[%clk 0:03:02]}  O-O {[%clk 0:02:59]} 6. h3 {[%clk 0:03:02]}  Nc6 {[%clk 0:02:59]} 7. O-O {[%clk 0:03:02]}  e5 {[%clk 0:03:00]} 8. Re1 {[%clk 0:03:01]}  Nh5 {[%clk 0:02:57]} 9. Bg5 {[%clk 0:02:51]}  Qe8 {[%clk 0:02:49]} 10. Na3 {[%clk 0:02:38]}  a6 {[%clk 0:02:34]} 11. Nc2 {[%clk 0:02:29]}  h6 {[%clk 0:02:33]} 12. Be3 {[%clk 0:02:27]}  Qe7 {[%clk 0:02:34]} 13. Qd2 {[%clk 0:02:27]}  Kh7 {[%clk 0:02:34]} 14. Rad1 {[%clk 0:02:19]}  Qf6 {[%clk 0:02:34]} 15. Nh2 {[%clk 0:01:55]}  Qh4 {[%clk 0:02:30]} 16. Nf3 {[%clk 0:01:49]}  Qf6 {[%clk 0:02:30]} 17. Nh2 {[%clk 0:01:49]}  Qh4 {[%clk 0:02:30]} 18. Nf3 {[%clk 0:01:49]}  Qe7 {[%clk 0:02:29]} 19. b4 {[%clk 0:01:39]}  Bd7 {[%clk 0:02:26]} 20. dxe5 {[%clk 0:01:28]}  Nxe5 {[%clk 0:02:21]} 21. Nxe5 {[%clk 0:01:28]}  Qxe5 {[%clk 0:02:22]} 22. Bd4 {[%clk 0:01:27]}  Qg5 {[%clk 0:02:19]} 23. Qxg5 {[%clk 0:01:20]}  hxg5 {[%clk 0:02:20]} 24. Bxg7 {[%clk 0:01:15]}  Kxg7 {[%clk 0:02:20]} 25. e5 {[%clk 0:01:15]}  d5 {[%clk 0:01:55]} 26. Bf1 {[%clk 0:00:57]}  Ba4 {[%clk 0:01:50]} 27. Rd2 {[%clk 0:00:50]}  Bxc2 {[%clk 0:01:50]} 28. Rxc2 {[%clk 0:00:50]}  Nf4 {[%clk 0:01:50]} 29. g3 {[%clk 0:00:47]}  Ne6 {[%clk 0:01:50]} 30. a4 {[%clk 0:00:38]}  a5 {[%clk 0:01:49]} 31. Bg2 {[%clk 0:00:26]}  c6 {[%clk 0:01:49]} 32. b5 {[%clk 0:00:26]}  Nc5 {[%clk 0:01:42]} 33. bxc6 {[%clk 0:00:22]}  bxc6 {[%clk 0:01:43]} 34. c4 {[%clk 0:00:23]}  d4 {[%clk 0:01:43]} 35. Bxc6 {[%clk 0:00:22]}  Rab8 {[%clk 0:01:44]} 36. Bb5 {[%clk 0:00:21]}  Rfd8 {[%clk 0:01:35]} 37. Rd2 {[%clk 0:00:21]}  d3 {[%clk 0:01:33]} 38. Re3 {[%clk 0:00:21]}  Rd4 {[%clk 0:01:32]} 39. Kg2 {[%clk 0:00:19]}  Rbd8 {[%clk 0:01:32]} 40. f3 {[%clk 0:00:16]}  Kf8 {[%clk 0:01:16]} 41. Kf2 {[%clk 0:00:15]}  Ke7 {[%clk 0:01:14]} 42. Rd1 {[%clk 0:00:15]}  Ke6 {[%clk 0:01:07]} 43. Rd2 {[%clk 0:00:15]}  Rh8 {[%clk 0:01:05]} 44. Kg2 {[%clk 0:00:15]}  Ke7 {[%clk 0:00:54]} 45. Rd1 {[%clk 0:00:15]}  Ke6 {[%clk 0:00:33]} 46. Rd2 {[%clk 0:00:15]}  Kf5 {[%clk 0:00:29]} 47. Bc6 {[%clk 0:00:10]}  Rhd8 {[%clk 0:00:17]} 48. Bd5 {[%clk 0:00:09]}  R8xd5 {[%clk 0:00:16]} 49. cxd5 {[%clk 0:00:09]}  Rxd5 {[%clk 0:00:17]} 50. Kf2 {[%clk 0:00:08]}  Rd4 {[%clk 0:00:18]} 51. e6 {[%clk 0:00:05]}  fxe6 {[%clk 0:00:16]} 52. Re1 {[%clk 0:00:05]}  Rxa4 {[%clk 0:00:12]} 53. Ke3 {[%clk 0:00:05]}  Rc4 {[%clk 0:00:09]} 54. Rb1 {[%clk 0:00:05]}  a4 {[%clk 0:00:08]} 55. Rb5 {[%clk 0:00:05]}  Kf6 {[%clk 0:00:08]} 56. Ra2 {[%clk 0:00:04]}  Rc1 {[%clk 0:00:07]} 57. Ra5 {[%clk 0:00:02]}  Re1+ {[%clk 0:00:03]} 58. Kf2 {[%clk 0:00:02]}  Rc1 {[%clk 0:00:03]} 59. Ra8 {[%clk 0:00:00]}  Rc2+ {[%clk 0:00:03]} 0-1


[Site "https://www.chess.com"]

[Event "Titled Tuesday Blitz June 13 Early 2023"]
[White "Gadimbayli, Abdulla"]
[Black "Tari, Aryan"]
[WhiteFideId "13404938"]
[BlackFideId "1510045"]
[WhiteElo "2386"]
[BlackElo "2586"]
[Result "1-0"]
[Round "9"]
[TimeControl "180+2"]
[Date "2023.06.13"]
[WhiteClock "0:00:05"]
[BlackClock "0:00:03"]
[Board "16"]

1. e4 {[%clk 0:02:59]}  e5 {[%clk 0:02:59]} 2. Nf3 {[%clk 0:02:59]}  Nc6 {[%clk 0:03:00]} 3. Nc3 {[%clk 0:03:00]}  Nf6 {[%clk 0:02:59]} 4. d4 {[%clk 0:03:01]}  exd4 {[%clk 0:03:00]} 5. Nxd4 {[%clk 0:03:02]}  Bb4 {[%clk 0:03:00]} 6. Nxc6 {[%clk 0:03:02]}  bxc6 {[%clk 0:03:01]} 7. Bd3 {[%clk 0:03:03]}  d5 {[%clk 0:03:01]} 8. exd5 {[%clk 0:03:04]}  O-O {[%clk 0:03:02]} 9. O-O {[%clk 0:03:04]}  cxd5 {[%clk 0:03:02]} 10. Bg5 {[%clk 0:03:04]}  Be7 {[%clk 0:03:01]} 11. Bxf6 {[%clk 0:03:01]}  Bxf6 {[%clk 0:03:02]} 12. Nxd5 {[%clk 0:03:02]}  Bxb2 {[%clk 0:02:57]} 13. Rb1 {[%clk 0:03:02]}  Ba3 {[%clk 0:02:48]} 14. Qf3 {[%clk 0:02:40]}  Kh8 {[%clk 0:01:57]} 15. Nf4 {[%clk 0:01:55]}  Bd7 {[%clk 0:01:40]} 16. Be4 {[%clk 0:01:55]}  Bd6 {[%clk 0:01:32]} 17. Bxa8 {[%clk 0:01:45]}  Qxa8 {[%clk 0:01:33]} 18. Qxa8 {[%clk 0:01:45]}  Rxa8 {[%clk 0:01:34]} 19. Nd3 {[%clk 0:01:42]}  Be6 {[%clk 0:01:34]} 20. a4 {[%clk 0:01:39]}  h5 {[%clk 0:01:28]} 21. Rfe1 {[%clk 0:01:39]}  Kh7 {[%clk 0:01:28]} 22. a5 {[%clk 0:01:32]}  a6 {[%clk 0:01:25]} 23. Ne5 {[%clk 0:01:22]}  Bc5 {[%clk 0:01:19]} 24. Nf3 {[%clk 0:01:18]}  Kg6 {[%clk 0:01:16]} 25. Rbd1 {[%clk 0:01:12]}  Rb8 {[%clk 0:01:03]} 26. h4 {[%clk 0:01:08]}  Rb4 {[%clk 0:00:59]} 27. Re5 {[%clk 0:01:03]}  Bd6 {[%clk 0:00:55]} 28. Rg5+ {[%clk 0:01:03]}  Kh6 {[%clk 0:00:56]} 29. Nd4 {[%clk 0:01:04]}  Bg4 {[%clk 0:00:47]} 30. Nf5+ {[%clk 0:00:56]}  Bxf5 {[%clk 0:00:47]} 31. Rxf5 {[%clk 0:00:57]}  f6 {[%clk 0:00:45]} 32. g3 {[%clk 0:00:55]}  Rc4 {[%clk 0:00:44]} 33. Rdd5 {[%clk 0:00:42]}  Be5 {[%clk 0:00:40]} 34. Rd2 {[%clk 0:00:37]}  Ra4 {[%clk 0:00:28]} 35. Kg2 {[%clk 0:00:35]}  Rxa5 {[%clk 0:00:28]} 36. Rf3 {[%clk 0:00:30]}  Ra2 {[%clk 0:00:28]} 37. Rfd3 {[%clk 0:00:18]}  a5 {[%clk 0:00:28]} 38. f4 {[%clk 0:00:17]}  Bd6 {[%clk 0:00:28]} 39. Rd5 {[%clk 0:00:18]}  a4 {[%clk 0:00:28]} 40. c4 {[%clk 0:00:16]}  Ra1 {[%clk 0:00:11]} 41. c5 {[%clk 0:00:15]}  Bf8 {[%clk 0:00:11]} 42. Rd7 {[%clk 0:00:07]}  Bxc5 {[%clk 0:00:06]} 43. Rxc7 {[%clk 0:00:08]}  Bb4 {[%clk 0:00:04]} 44. Rd8 {[%clk 0:00:05]}  Kg6 {[%clk 0:00:03]} 45. Rg8 {[%clk 0:00:04]}  a3 {[%clk 0:00:02]} 46. Rgxg7+ {[%clk 0:00:04]}  Kf5 {[%clk 0:00:03]} 47. Rb7 {[%clk 0:00:04]}  Rb1 {[%clk 0:00:03]} 48. Ra7 {[%clk 0:00:04]}  Rb2+ {[%clk 0:00:02]} 49. Kh3 {[%clk 0:00:05]}  a2 {[%clk 0:00:03]} 50. Rgb7 {[%clk 0:00:05]}  Rb3 {[%clk 0:00:03]} 51. Rxa2 {[%clk 0:00:05]}  Ke4 {[%clk 0:00:03]} 52. Ra4 {[%clk 0:00:04]}  Kf3 {[%clk 0:00:04]} 53. Rbxb4 {[%clk 0:00:05]}  Re3 {[%clk 0:00:04]} 54. Rb1 {[%clk 0:00:05]}  Kf2 {[%clk 0:00:04]} 55. Ra2+ {[%clk 0:00:05]}  Kf3 {[%clk 0:00:05]} 56. Rab2 {[%clk 0:00:05]}  Rd3 {[%clk 0:00:05]} 57. Rb3 {[%clk 0:00:06]}  Kf2 {[%clk 0:00:03]} 58. Rxd3 {[%clk 0:00:05]} 1-0


[Site "https://www.chess.com"]

[Event "Titled Tuesday Blitz June 13 Early 2023"]
[White "Le, Tuan Minh"]
[Black "Starozhilov, Leonid"]
[WhiteFideId "12401153"]
[BlackFideId "14106752"]
[WhiteElo "2566"]
[BlackElo "2352"]
[Result "1-0"]
[Round "9"]
[TimeControl "180+2"]
[Date "2023.06.13"]
[WhiteClock "0:02:03"]
[BlackClock "0:00:00"]
[Board "22"]

1. d4 {[%clk 0:02:58]}  Nf6 {[%clk 0:03:00]} 2. Nf3 {[%clk 0:02:58]}  g6 {[%clk 0:03:00]} 3. Bg5 {[%clk 0:02:56]}  Ne4 {[%clk 0:02:58]} 4. Bf4 {[%clk 0:02:56]}  d6 {[%clk 0:02:57]} 5. Nbd2 {[%clk 0:02:56]}  Nxd2 {[%clk 0:02:55]} 6. Qxd2 {[%clk 0:02:57]}  Nc6 {[%clk 0:02:53]} 7. O-O-O {[%clk 0:02:55]}  Bg7 {[%clk 0:02:52]} 8. Bh6 {[%clk 0:02:54]}  Bf6 {[%clk 0:02:33]} 9. h3 {[%clk 0:02:51]}  Bf5 {[%clk 0:02:01]} 10. g4 {[%clk 0:02:50]}  Be4 {[%clk 0:01:57]} 11. d5 {[%clk 0:02:30]}  Nb8 {[%clk 0:00:36]} 12. Qb4 {[%clk 0:02:15]}  Bxf3 {[%clk 0:00:21]} 13. exf3 {[%clk 0:02:16]}  c5 {[%clk 0:00:02]} 14. Qxb7 {[%clk 0:02:09]}  Nd7 {[%clk 0:00:02]} 15. Bb5 {[%clk 0:02:10]}  Rc8 {[%clk 0:00:02]} 16. c3 {[%clk 0:02:03]}  Rc7 {[%clk 0:00:00]} 17. Qa6 {[%clk 0:02:03]} 1-0


[Site "https://www.chess.com"]

[Event "Titled Tuesday Blitz June 13 Early 2023"]
[White "Mekhitarian, Krikor Sevag"]
[Black "Jaracz, Pawel"]
[WhiteFideId "2107660"]
[BlackFideId "1102222"]
[WhiteElo "2604"]
[BlackElo "2454"]
[Result "1-0"]
[Round "9"]
[TimeControl "180+2"]
[Date "2023.06.13"]
[WhiteClock "0:00:14"]
[BlackClock "0:00:02"]
[Board "28"]

1. Nf3 {[%clk 0:03:00]}  b5 {[%clk 0:02:48]} 2. e4 {[%clk 0:02:49]}  Bb7 {[%clk 0:02:48]} 3. Bxb5 {[%clk 0:02:47]}  Bxe4 {[%clk 0:02:47]} 4. O-O {[%clk 0:02:47]}  e6 {[%clk 0:02:46]} 5. Re1 {[%clk 0:02:47]}  Nf6 {[%clk 0:02:45]} 6. d4 {[%clk 0:02:41]}  Be7 {[%clk 0:02:40]} 7. Bf1 {[%clk 0:02:30]}  O-O {[%clk 0:02:33]} 8. c4 {[%clk 0:02:30]}  c6 {[%clk 0:02:31]} 9. Nc3 {[%clk 0:02:29]}  Bxf3 {[%clk 0:02:30]} 10. Qxf3 {[%clk 0:02:30]}  d5 {[%clk 0:02:30]} 11. Be3 {[%clk 0:02:22]}  Nbd7 {[%clk 0:02:29]} 12. Rac1 {[%clk 0:02:20]}  a5 {[%clk 0:02:24]} 13. Qd1 {[%clk 0:01:30]}  dxc4 {[%clk 0:02:14]} 14. Bxc4 {[%clk 0:01:25]}  Nb6 {[%clk 0:02:14]} 15. Be2 {[%clk 0:01:22]}  Nbd5 {[%clk 0:02:14]} 16. Bf3 {[%clk 0:01:23]}  Bb4 {[%clk 0:02:06]} 17. Bd2 {[%clk 0:01:22]}  Rb8 {[%clk 0:02:04]} 18. Na4 {[%clk 0:01:20]}  Qd6 {[%clk 0:01:54]} 19. a3 {[%clk 0:01:15]}  Bxd2 {[%clk 0:01:53]} 20. Qxd2 {[%clk 0:01:16]}  Ne7 {[%clk 0:01:18]} 21. Qxa5 {[%clk 0:01:02]}  Qxd4 {[%clk 0:01:11]} 22. Red1 {[%clk 0:00:53]}  Qf4 {[%clk 0:01:09]} 23. Nc5 {[%clk 0:00:46]}  Nfd5 {[%clk 0:00:56]} 24. Qd2 {[%clk 0:00:43]}  Qh4 {[%clk 0:00:39]} 25. Nd7 {[%clk 0:00:39]}  Ra8 {[%clk 0:00:33]} 26. Nxf8 {[%clk 0:00:39]}  Kxf8 {[%clk 0:00:33]} 27. g3 {[%clk 0:00:38]}  Qf6 {[%clk 0:00:31]} 28. Bg2 {[%clk 0:00:38]}  h5 {[%clk 0:00:30]} 29. Qd4 {[%clk 0:00:35]}  Qg5 {[%clk 0:00:24]} 30. h4 {[%clk 0:00:34]}  Qg6 {[%clk 0:00:23]} 31. Qc5 {[%clk 0:00:28]}  Qf6 {[%clk 0:00:17]} 32. Qd4 {[%clk 0:00:26]}  Qg6 {[%clk 0:00:15]} 33. Rc4 {[%clk 0:00:23]}  Kg8 {[%clk 0:00:15]} 34. Qd2 {[%clk 0:00:21]}  Ra6 {[%clk 0:00:13]} 35. Qd3 {[%clk 0:00:21]}  Rb6 {[%clk 0:00:13]} 36. Qxg6 {[%clk 0:00:20]}  Nxg6 {[%clk 0:00:12]} 37. Rc2 {[%clk 0:00:19]}  Ne5 {[%clk 0:00:12]} 38. a4 {[%clk 0:00:19]}  Rb3 {[%clk 0:00:11]} 39. Ra1 {[%clk 0:00:18]}  Nb4 {[%clk 0:00:11]} 40. Re2 {[%clk 0:00:15]}  Nc4 {[%clk 0:00:10]} 41. a5 {[%clk 0:00:15]}  Na6 {[%clk 0:00:08]} 42. Rc2 {[%clk 0:00:15]}  Rb4 {[%clk 0:00:02]} 43. Bf1 {[%clk 0:00:14]} 1-0


[Site "https://www.chess.com"]

[Event "Titled Tuesday Blitz June 13 Early 2023"]
[White "Kashlinskaya, Alina"]
[Black "Krzyzanowski, Marcin"]
[WhiteFideId "4198026"]
[BlackFideId "1132199"]
[WhiteElo "2383"]
[BlackElo "2471"]
[Result "0-1"]
[Round "9"]
[TimeControl "180+2"]
[Date "2023.06.13"]
[WhiteClock "0:00:12"]
[BlackClock "0:00:20"]
[Board "30"]

1. Nf3 {[%clk 0:03:00]}  Nf6 {[%clk 0:02:58]} 2. g3 {[%clk 0:03:01]}  d5 {[%clk 0:02:56]} 3. Bg2 {[%clk 0:03:01]}  b5 {[%clk 0:02:54]} 4. O-O {[%clk 0:03:01]}  Bb7 {[%clk 0:02:54]} 5. a4 {[%clk 0:03:00]}  b4 {[%clk 0:02:55]} 6. d4 {[%clk 0:03:00]}  e6 {[%clk 0:02:55]} 7. c3 {[%clk 0:02:58]}  bxc3 {[%clk 0:02:52]} 8. Nxc3 {[%clk 0:02:57]}  Be7 {[%clk 0:02:48]} 9. Bf4 {[%clk 0:02:56]}  O-O {[%clk 0:02:43]} 10. Qb3 {[%clk 0:02:48]}  Ba6 {[%clk 0:02:20]} 11. Nb5 {[%clk 0:02:44]}  Ne8 {[%clk 0:02:18]} 12. Rfc1 {[%clk 0:02:38]}  c6 {[%clk 0:01:56]} 13. Nc3 {[%clk 0:02:37]}  Nd7 {[%clk 0:01:52]} 14. Qc2 {[%clk 0:02:33]}  Rc8 {[%clk 0:01:50]} 15. e4 {[%clk 0:02:31]}  Nd6 {[%clk 0:01:47]} 16. e5 {[%clk 0:02:19]}  Nc4 {[%clk 0:01:46]} 17. b3 {[%clk 0:02:14]}  Na5 {[%clk 0:01:46]} 18. Rab1 {[%clk 0:02:10]}  c5 {[%clk 0:01:33]} 19. Qd1 {[%clk 0:01:55]}  c4 {[%clk 0:01:28]} 20. b4 {[%clk 0:01:53]}  Nb3 {[%clk 0:01:28]} 21. b5 {[%clk 0:01:53]}  Nxc1 {[%clk 0:01:25]} 22. Qxc1 {[%clk 0:01:44]}  Bb7 {[%clk 0:01:25]} 23. h4 {[%clk 0:01:44]}  f5 {[%clk 0:01:19]} 24. exf6 {[%clk 0:01:41]}  Bxf6 {[%clk 0:01:17]} 25. Bh3 {[%clk 0:01:40]}  Re8 {[%clk 0:01:12]} 26. Ne5 {[%clk 0:01:38]}  Bxe5 {[%clk 0:01:08]} 27. dxe5 {[%clk 0:01:36]}  d4 {[%clk 0:01:07]} 28. Na2 {[%clk 0:01:29]}  Nb6 {[%clk 0:01:06]} 29. Nb4 {[%clk 0:01:27]}  Nd5 {[%clk 0:01:05]} 30. Bg5 {[%clk 0:01:25]}  Qa5 {[%clk 0:01:04]} 31. Nc6 {[%clk 0:01:12]}  Bxc6 {[%clk 0:01:02]} 32. bxc6 {[%clk 0:01:13]}  Rxc6 {[%clk 0:01:00]} 33. Rb7 {[%clk 0:01:02]}  Rc7 {[%clk 0:00:38]} 34. Rb5 {[%clk 0:00:52]}  Qxa4 {[%clk 0:00:36]} 35. Bxe6+ {[%clk 0:00:52]}  Rxe6 {[%clk 0:00:36]} 36. Rxd5 {[%clk 0:00:53]}  d3 {[%clk 0:00:33]} 37. Rxd3 {[%clk 0:00:34]}  cxd3 {[%clk 0:00:24]} 38. Qxc7 {[%clk 0:00:35]}  Qa1+ {[%clk 0:00:21]} 39. Kg2 {[%clk 0:00:27]}  Qxe5 {[%clk 0:00:21]} 40. Qc8+ {[%clk 0:00:28]}  Re8 {[%clk 0:00:22]} 41. Qc4+ {[%clk 0:00:28]}  Qe6 {[%clk 0:00:21]} 42. Qxd3 {[%clk 0:00:29]}  Qe4+ {[%clk 0:00:22]} 43. Qxe4 {[%clk 0:00:27]}  Rxe4 {[%clk 0:00:22]} 44. Kf3 {[%clk 0:00:28]}  Rb4 {[%clk 0:00:19]} 45. Ke2 {[%clk 0:00:24]}  a5 {[%clk 0:00:18]} 46. Kd3 {[%clk 0:00:24]}  a4 {[%clk 0:00:18]} 47. Bd2 {[%clk 0:00:19]}  Rb3+ {[%clk 0:00:19]} 48. Kc2 {[%clk 0:00:17]}  Kf7 {[%clk 0:00:19]} 49. Bc3 {[%clk 0:00:16]}  h5 {[%clk 0:00:20]} 50. f3 {[%clk 0:00:15]}  g6 {[%clk 0:00:19]} 51. g4 {[%clk 0:00:16]}  Ke6 {[%clk 0:00:20]} 52. Kd2 {[%clk 0:00:13]}  Kd5 {[%clk 0:00:20]} 53. Kc2 {[%clk 0:00:14]}  Kc4 {[%clk 0:00:20]} 54. gxh5 {[%clk 0:00:14]}  gxh5 {[%clk 0:00:19]} 55. Bf6 {[%clk 0:00:12]}  Rxf3 {[%clk 0:00:20]} 0-1


[Site "https://www.chess.com"]

[Event "Titled Tuesday Blitz June 13 Early 2023"]
[White "Budrewicz, Krzysztof"]
[Black "Hafiz, Arif Abdul"]
[WhiteFideId "1127950"]
[BlackFideId "7104227"]
[WhiteElo "2230"]
[BlackElo "2198"]
[Result "0-1"]
[Round "9"]
[TimeControl "180+2"]
[Date "2023.06.13"]
[WhiteClock "0:00:02"]
[BlackClock "0:00:20"]
[Board "32"]

1. d4 {[%clk 0:03:00]}  Nf6 {[%clk 0:02:51]} 2. c4 {[%clk 0:03:00]}  g6 {[%clk 0:02:47]} 3. Nc3 {[%clk 0:03:00]}  d5 {[%clk 0:02:47]} 4. Nf3 {[%clk 0:02:58]}  Bg7 {[%clk 0:02:42]} 5. cxd5 {[%clk 0:02:58]}  Nxd5 {[%clk 0:02:41]} 6. Bd2 {[%clk 0:02:59]}  O-O {[%clk 0:02:34]} 7. e4 {[%clk 0:02:58]}  Nxc3 {[%clk 0:02:33]} 8. Bxc3 {[%clk 0:02:58]}  Nd7 {[%clk 0:02:30]} 9. Be2 {[%clk 0:02:56]}  c5 {[%clk 0:02:25]} 10. O-O {[%clk 0:02:54]}  cxd4 {[%clk 0:02:25]} 11. Bxd4 {[%clk 0:02:55]}  Nf6 {[%clk 0:02:24]} 12. Qc2 {[%clk 0:02:38]}  Bg4 {[%clk 0:02:21]} 13. Bc3 {[%clk 0:02:36]}  Rc8 {[%clk 0:02:16]} 14. h3 {[%clk 0:02:36]}  Bxf3 {[%clk 0:02:14]} 15. Bxf3 {[%clk 0:02:37]}  Nd7 {[%clk 0:02:13]} 16. Rfd1 {[%clk 0:02:33]}  Bxc3 {[%clk 0:02:13]} 17. bxc3 {[%clk 0:02:33]}  Qc7 {[%clk 0:02:13]} 18. Qb3 {[%clk 0:02:14]}  Nc5 {[%clk 0:02:09]} 19. Qb4 {[%clk 0:02:11]}  b6 {[%clk 0:02:09]} 20. Rd4 {[%clk 0:02:06]}  Ne6 {[%clk 0:02:07]} 21. Rd3 {[%clk 0:02:04]}  Nc5 {[%clk 0:02:06]} 22. Rd4 {[%clk 0:02:02]}  Na6 {[%clk 0:02:05]} 23. Qa4 {[%clk 0:02:02]}  Nb8 {[%clk 0:01:52]} 24. Rad1 {[%clk 0:01:58]}  e6 {[%clk 0:01:51]} 25. h4 {[%clk 0:01:50]}  h6 {[%clk 0:01:47]} 26. h5 {[%clk 0:01:49]}  g5 {[%clk 0:01:47]} 27. g3 {[%clk 0:01:37]}  Qxc3 {[%clk 0:01:47]} 28. Kg2 {[%clk 0:01:36]}  Nc6 {[%clk 0:01:39]} 29. R4d3 {[%clk 0:01:32]}  Qf6 {[%clk 0:01:35]} 30. Re3 {[%clk 0:01:24]}  Rc7 {[%clk 0:01:29]} 31. Rc1 {[%clk 0:01:04]}  Rfc8 {[%clk 0:01:28]} 32. Qa6 {[%clk 0:00:36]}  Qd8 {[%clk 0:00:44]} 33. Rec3 {[%clk 0:00:31]}  Nb4 {[%clk 0:00:37]} 34. Qxc8 {[%clk 0:00:23]}  Qxc8 {[%clk 0:00:38]} 35. Rxc7 {[%clk 0:00:24]}  Qa6 {[%clk 0:00:38]} 36. e5 {[%clk 0:00:18]}  Qxa2 {[%clk 0:00:32]} 37. R1c3 {[%clk 0:00:17]}  Qa5 {[%clk 0:00:29]} 38. Rc8+ {[%clk 0:00:17]}  Kg7 {[%clk 0:00:29]} 39. R3c7 {[%clk 0:00:17]}  Qxe5 {[%clk 0:00:28]} 40. Rxa7 {[%clk 0:00:16]}  Nd3 {[%clk 0:00:27]} 41. Rcc7 {[%clk 0:00:16]}  Qf5 {[%clk 0:00:20]} 42. Be2 {[%clk 0:00:12]}  Qxf2+ {[%clk 0:00:20]} 43. Kh3 {[%clk 0:00:02]}  Ne5 {[%clk 0:00:20]} 0-1


[Site "https://www.chess.com"]

[Event "Titled Tuesday Blitz June 13 Early 2023"]
[White "Miladinovic, Igor"]
[Black "Gontcharov, Vladislav"]
[WhiteFideId "4203380"]
[BlackFideId "4123492"]
[WhiteElo "2568"]
[BlackElo "2420"]
[Result "1-0"]
[Round "9"]
[TimeControl "180+2"]
[Date "2023.06.13"]
[WhiteClock "0:01:46"]
[BlackClock "0:00:45"]
[Board "33"]

1. d4 {[%clk 0:03:00]}  Nf6 {[%clk 0:02:56]} 2. Bg5 {[%clk 0:03:00]}  e6 {[%clk 0:02:55]} 3. e3 {[%clk 0:03:01]}  c5 {[%clk 0:02:54]} 4. c3 {[%clk 0:03:00]}  cxd4 {[%clk 0:02:25]} 5. exd4 {[%clk 0:03:01]}  Be7 {[%clk 0:02:24]} 6. Bxf6 {[%clk 0:02:58]}  Bxf6 {[%clk 0:02:24]} 7. Nd2 {[%clk 0:02:59]}  d5 {[%clk 0:02:23]} 8. Ngf3 {[%clk 0:03:00]}  Nc6 {[%clk 0:02:22]} 9. Bd3 {[%clk 0:02:59]}  O-O {[%clk 0:02:16]} 10. O-O {[%clk 0:02:46]}  e5 {[%clk 0:02:10]} 11. dxe5 {[%clk 0:02:45]}  Nxe5 {[%clk 0:02:10]} 12. Nxe5 {[%clk 0:02:46]}  Bxe5 {[%clk 0:02:06]} 13. Bxh7+ {[%clk 0:02:46]}  Kxh7 {[%clk 0:02:06]} 14. Qh5+ {[%clk 0:02:46]}  Kg8 {[%clk 0:02:07]} 15. Qxe5 {[%clk 0:02:47]}  Re8 {[%clk 0:02:06]} 16. Qd4 {[%clk 0:02:46]}  Be6 {[%clk 0:01:47]} 17. Rae1 {[%clk 0:02:39]}  b5 {[%clk 0:01:40]} 18. Re3 {[%clk 0:02:37]}  f6 {[%clk 0:01:35]} 19. Rfe1 {[%clk 0:02:36]}  Qd7 {[%clk 0:01:33]} 20. h3 {[%clk 0:02:27]}  Bf7 {[%clk 0:01:25]} 21. Rxe8+ {[%clk 0:02:16]}  Rxe8 {[%clk 0:01:24]} 22. Rxe8+ {[%clk 0:02:15]}  Bxe8 {[%clk 0:01:24]} 23. Nf1 {[%clk 0:02:15]}  Bf7 {[%clk 0:01:20]} 24. Ne3 {[%clk 0:02:15]}  a5 {[%clk 0:01:09]} 25. Qb6 {[%clk 0:01:52]}  b4 {[%clk 0:01:03]} 26. Qxa5 {[%clk 0:01:49]}  bxc3 {[%clk 0:01:03]} 27. bxc3 {[%clk 0:01:50]}  d4 {[%clk 0:01:02]} 28. Qa8+ {[%clk 0:01:49]}  Kh7 {[%clk 0:00:56]} 29. Qe4+ {[%clk 0:01:49]}  Kg8 {[%clk 0:00:56]} 30. cxd4 {[%clk 0:01:47]}  Bxa2 {[%clk 0:00:45]} 31. Qa8+ {[%clk 0:01:46]} 1-0


[Site "https://www.chess.com"]